fUSD/lending_fUSD_20251025
["ID","MTS","AMOUNT","RATE_DAILY","PERIOD"]
[392354514,1761396645026,-500.0,0.00032876,9]
[392354515,1761396645035,-500.0,0.00032876,7]
[392354516,1761396645044,-500.0,0.00032876,9]
[392354517,1761396645053,-500.0,0.00032876,9]
[392354518,1761396645062,-500.0,0.00032876,9]
[392354519,1761396645072,-500.0,0.00032876,9]
[392354520,1761396645081,-500.0,0.00032876,9]
[392354521,1761396645091,-500.0,0.00032876,9]
[392354522,1761396645100,-500.0,0.00032876,9]
[392354523,1761396645109,-500.0,0.00032876,9]
[392354524,1761396645119,-500.0,0.00032876,9]
[392354525,1761396645128,-500.0,0.00032876,9]
[392354526,1761396645137,-500.0,0.00032876,9]
[392354527,1761396645146,-500.0,0.00032876,9]
[392354528,1761396645155,-500.0,0.00032876,9]
[392354529,1761396645165,-500.0,0.00032876,9]
[392354530,1761396645174,-511.21476044,0.00032876,9]
[392354531,1761396645183,-500.0,0.00032876,9]
[392354532,1761396645192,-500.0,0.00032876,9]
[392354533,1761396645201,-504.95,0.00032876,9]
[392354534,1761396645211,-500.0,0.00032876,9]
[392354535,1761396645220,-580.5,0.00032876,9]
[392354536,1761396645230,-500.0,0.00032876,9]
[392354537,1761396645239,-500.0,0.00032876,9]
[392354538,1761396645248,-500.0,0.00032876,9]
[392354539,1761396645258,-500.0,0.00032876,9]
[392354540,1761396645268,-500.0,0.00032876,9]
[392354541,1761396645277,-480.52931902,0.00032876,9]
[392354542,1761396645287,-500.0,0.00032876,9]
[392354543,1761396645297,-500.0,0.00032876,9]
[392354544,1761396645305,-500.0,0.00032876,9]
[392354545,1761396645315,-162.91997684,0.00032876,9]
[392354546,1761396645324,-500.0,0.00032876,9]
[392354547,1761396645333,-500.0,0.00032876,9]
[392354548,1761396645342,-500.0,0.00032876,9]
[392354549,1761396645351,-502.76254837,0.00032876,9]
[392354550,1761396645361,-500.0,0.00032876,9]
[392354551,1761396645370,-500.0,0.00032876,9]
[392354552,1761396645379,-500.0,0.00032876,9]
[392354553,1761396645388,-500.0,0.00032876,9]
[392354554,1761396645400,-1911.04,0.00032876,9]
[392354555,1761396645410,-500.0,0.00032876,9]
[392354556,1761396645419,-500.0,0.00032876,9]
[392354557,1761396645428,-267.782194,0.00032876,30]
[392354558,1761396645438,-500.0,0.00032876,9]
[392354559,1761396645448,-847.34,0.00032876,9]
[392354560,1761396645503,-500.0,0.00032876,9]
[392354561,1761396645512,-500.0,0.00032876,9]
[392354562,1761396645521,-500.0,0.00032876,9]
[392354563,1761396645530,-612.62,0.00032876,9]
[392354564,1761396645539,-500.0,0.00032876,9]
[392354565,1761396645547,-500.0,0.00032876,2]
[392354566,1761396645557,-500.0,0.00032876,9]
[392354567,1761396645566,-500.0,0.00032876,9]
[392354568,1761396645574,-500.0,0.00032876,9]
[392354569,1761396645584,-27349.58,0.00032876,9]
[392354570,1761396645593,-1578.34,0.00032876,9]
[392354571,1761396645604,-500.0,0.00032876,9]
[392354572,1761396645613,-500.0,0.00032876,9]
[392354573,1761396645622,-528.16,0.00032876,9]
[392354574,1761396645631,-500.0,0.00032876,9]
[392354575,1761396645640,-500.0,0.00032876,9]
[392354576,1761396645650,-500.0,0.00032876,9]
[392354577,1761396645660,-151.0,0.00032876,30]
[392354578,1761396645668,-151.0,0.00032876,30]
[392354579,1761396645678,-500.0,0.00032876,9]
[392354580,1761396645687,-241.074515,0.00032876,30]
[392354581,1761396645696,-500.0,0.00032876,9]
[392354582,1761396645705,-500.0,0.00032876,9]
[392354583,1761396645714,-512.1,0.00032876,9]
[392354584,1761396645723,-500.0,0.00032876,9]
[392354585,1761396645733,-532.31442898,0.00032876,9]
[392354586,1761396645742,-500.0,0.00032876,9]
[392354587,1761396645752,-500.0,0.00032876,7]
[392354588,1761396645760,-186.35752046,0.00032876,9]
[392354589,1761396645770,-500.0,0.00032876,9]
[392354590,1761396645779,-500.0,0.00032876,9]
[392354591,1761396645789,-500.0,0.00032876,9]
[392354593,1761396645803,-500.0,0.00032876,9]
[392354594,1761396645812,-500.0,0.00032876,9]
[392354595,1761396645820,-500.0,0.00032876,9]
[392354596,1761396645830,-548.9,0.00032876,9]
[392354597,1761396645841,-500.0,0.00032876,9]
[392354598,1761396645851,-500.0,0.00032876,9]
[392354599,1761396645860,-500.0,0.00032876,9]
[392354600,1761396645871,-500.0,0.00032876,9]
[392354601,1761396645880,-500.0,0.00032876,9]
[392354602,1761396645890,-500.0,0.00032876,9]
[392354603,1761396645899,-500.0,0.00032876,9]
[392354604,1761396645908,-500.0,0.00032876,9]
[392354605,1761396645917,-500.0,0.00032876,9]
[392354606,1761396645926,-500.0,0.00032876,9]
[392354607,1761396645935,-500.0,0.00032876,9]
[392354608,1761396645944,-500.0,0.00032876,9]
[392354610,1761396645954,-500.0,0.00032876,9]
[392354611,1761396645963,-500.0,0.00032876,9]
[392354612,1761396645972,-647.33,0.00032876,9]
[392354613,1761396645982,-500.0,0.00032876,9]
[392354614,1761396645991,-500.0,0.00032876,2]
[392354615,1761396646001,-500.0,0.00032876,2]
[392354617,1761396646011,-500.0,0.00032876,2]
[392354618,1761396646020,-500.0,0.00032876,2]
[392354619,1761396646030,-500.0,0.00032876,2]
[392354620,1761396646039,-500.0,0.00032876,2]
[392354621,1761396646048,-500.0,0.00032876,2]
[392354622,1761396646057,-500.0,0.00032876,2]
[392354623,1761396646066,-500.0,0.00032876,9]
[392354624,1761396646075,-500.0,0.00032876,9]
[392354625,1761396646084,-500.0,0.00032876,9]
[392354626,1761396646093,-500.0,0.00032876,9]
[392354627,1761396646102,-500.0,0.00032876,9]
[392354628,1761396646111,-282.36368369,0.00032876,9]
[392354629,1761396646120,-500.0,0.00032876,9]
[392354630,1761396646129,-535.57916124,0.00032876,9]
[392354631,1761396646139,-620.95,0.00032876,9]
[392354632,1761396646147,-500.0,0.00032876,9]
[392354633,1761396646156,-543.66,0.00032876,9]
[392354634,1761396646165,-500.0,0.00032876,9]
[392354635,1761396646174,-500.0,0.00032876,9]
[392354636,1761396646182,-500.0,0.00032876,9]
[392354637,1761396646191,-500.0,0.00032876,9]
[392354638,1761396646200,-500.0,0.00032876,9]
[392354639,1761396646209,-500.0,0.00032876,9]
[392354640,1761396646218,-500.0,0.00032876,9]
[392354641,1761396646227,-15522.42,0.00032876,9]
[392354642,1761396646235,-624.17,0.00032876,9]
[392354643,1761396646244,-500.0,0.00032876,9]
[392354644,1761396646253,-500.0,0.00032876,9]
[392354645,1761396646261,-500.0,0.00032876,9]
[392354646,1761396646270,-500.0,0.00032876,9]
[392354647,1761396646279,-601.16,0.00032876,9]
[392354648,1761396646288,-500.0,0.00032876,9]
[392354649,1761396646296,-500.0,0.00032876,9]
[392354650,1761396646305,-500.0,0.00032876,9]
[392354651,1761396646314,-156.04324439,0.00032876,9]
[392354652,1761396646323,-500.0,0.00032876,9]
[392354653,1761396646332,-500.0,0.00032876,9]
[392354654,1761396646341,-500.0,0.00032876,9]
[392354655,1761396646350,-254.60476041,0.00032876,9]
[392354656,1761396646359,-1864.54,0.00032876,9]
[392354657,1761396646368,-500.0,0.00032876,9]
[392354658,1761396646377,-515.35119254,0.00032876,9]
[392354659,1761396646386,-544.29,0.00032876,9]
[392354660,1761396646394,-500.0,0.00032876,9]
[392354661,1761396646403,-500.0,0.00032876,9]
[392354662,1761396646411,-500.0,0.00032876,9]
[392354663,1761396646420,-151.0,0.00032876,30]
[392354664,1761396646428,-283.124772,0.00032876,30]
[392354665,1761396646437,-500.0,0.00032876,9]
[392354666,1761396646446,-267.90798227,0.00032876,9]
[392354667,1761396646455,-500.0,0.00032876,9]
[392354668,1761396646464,-500.0,0.00032876,9]
[392354669,1761396646473,-500.0,0.00032876,9]
[392354670,1761396646482,-500.0,0.00032876,9]
[392354671,1761396646491,-500.0,0.00032876,9]
[392354672,1761396646499,-697.43,0.00032876,9]
[392354673,1761396646508,-500.0,0.00032876,9]
[392354674,1761396646516,-500.0,0.00032876,9]
[392354675,1761396646525,-500.0,0.00032876,9]
[392354676,1761396646534,-500.0,0.00032876,9]
[392354677,1761396646542,-164.03789325,0.00032876,9]
[392354678,1761396646551,-500.0,0.00032876,9]
[392354679,1761396646559,-645.57606024,0.00032876,9]
[392354680,1761396646568,-500.0,0.00032876,9]
[392354681,1761396646577,-500.0,0.00032876,9]
[392354682,1761396646585,-222.89213271,0.00032876,9]
[392354683,1761396646594,-1011.02,0.00032876,9]
[392354684,1761396646603,-500.0,0.00032876,9]
[392354685,1761396646611,-500.0,0.00032876,9]
[392354686,1761396646620,-500.0,0.00032876,9]
[392354687,1761396646628,-500.0,0.00032876,9]
[392354688,1761396646637,-500.0,0.00032876,9]
[392354689,1761396646646,-501.95,0.00032876,9]
[392354690,1761396646655,-627.18,0.00032876,9]
[392354691,1761396646664,-394.83764358,0.00032876,9]
[392354692,1761396646673,-868.13,0.00032876,9]
[392354693,1761396646682,-500.0,0.00032876,9]
[392354694,1761396646692,-500.0,0.00032876,9]
[392354695,1761396646702,-230.24012555,0.00032876,2]
[392354696,1761396646711,-558.03,0.00032876,9]
[392354697,1761396646720,-500.0,0.00032876,9]
[392354698,1761396646729,-500.0,0.00032876,9]
[392354699,1761396646738,-500.0,0.00032876,9]
[392354700,1761396646748,-500.0,0.00032876,9]
[392354701,1761396646757,-254.99023144,0.00032876,9]
[392354702,1761396646767,-500.0,0.00032876,9]
[392354703,1761396646776,-500.0,0.00032876,9]
[392354704,1761396646785,-624.88,0.00032876,9]
[392354705,1761396646798,-265.30849649,0.00032876,9]
[392354706,1761396647091,-234.69150351,0.00032876,9]
[392354707,1761396647102,-500.0,0.00032876,9]
[392354708,1761396647113,-500.0,0.00032876,9]
[392354709,1761396647122,-214.77141972,0.00032876,9]
[392354710,1761396647131,-628.44,0.00032876,9]
[392354711,1761396647141,-500.0,0.00032876,9]
[392354712,1761396647150,-549.76,0.00032876,9]
[392354713,1761396647163,-500.0,0.00032876,9]
[392354714,1761396647174,-500.0,0.00032876,9]
[392354715,1761396647183,-500.0,0.00032876,9]
[392354716,1761396647191,-393.82354496,0.00032876,9]
[392354717,1761396647204,-106.17645504,0.00032876,9]
[392354718,1761396647213,-281.35994486,0.00032876,9]
[392354719,1761396647244,-218.64005514,0.00032876,9]
[392354720,1761396647253,-161.52856969,0.00032876,9]
[392354721,1761396647263,-500.0,0.00032876,9]
[392354722,1761396647272,-500.0,0.00032876,9]
[392354723,1761396647282,-500.0,0.00032876,9]
[392354724,1761396647292,-84.2312697,0.00032876,9]
[392354725,1761396648020,-415.7687303,0.00032876,9]
[392354726,1761396648030,-500.0,0.00032876,9]
[392354727,1761396648038,-500.0,0.00032876,9]
[392354728,1761396648048,-337.56824661,0.00032876,9]
[392354729,1761396648057,-500.0,0.00032876,9]
[392354730,1761396648066,-500.0,0.00032876,9]
[392354731,1761396648075,-500.0,0.00032876,9]
[392354732,1761396648084,-626.21,0.00032876,9]
[392354733,1761396648093,-500.0,0.00032876,9]
[392354734,1761396648102,-500.0,0.00032876,9]
[392354735,1761396648110,-504.43,0.00032876,9]
[392354736,1761396648119,-222.71402309,0.00032876,2]
[392354861,1761397223100,166.06483272,0.0001918,2]
[392355013,1761397618376,157.49675784,0.00036671,120]
[392355016,1761397625411,414.0,0.00036671,30]
[392355021,1761397631856,500.0,0.00036671,30]
[392355057,1761397806719,1110.0,0.00036672,120]
[392355069,1761397832254,-150.0,0.00030058,7]
[392355070,1761397832265,-268.1496886,0.00030058,7]
[392355071,1761397832276,-150.0,0.00030058,7]
[392355072,1761397832288,-41.6919104,0.00030197,2]
[392355073,1761397832364,-208.3080896,0.00030197,2]
[392355074,1761397832374,-152.0,0.00030337,3]
[392355075,1761397832385,-166.66,0.0003041,30]
[392355076,1761397832396,-224.8045758,0.00030466,2]
[392355077,1761397832407,-5888.0,0.00030475,2]
[392355078,1761397832418,-166.66,0.00031051,30]
[392355079,1761397832428,-400.0,0.00031109,2]
[392355080,1761397832438,-8788.4,0.0003111,2]
[392355081,1761397832449,-1000.0,0.00031195,2]
[392355082,1761397832460,-239.98550883,0.00031219,2]
[392355083,1761397832470,-500.0,0.00031219,2]
[392355084,1761397832481,-500.0,0.00031219,2]
[392355085,1761397832491,-500.0,0.00031219,2]
[392355086,1761397832503,-500.0,0.00031219,2]
[392355087,1761397832513,-500.0,0.00031219,2]
[392355088,1761397832523,-500.0,0.00031219,2]
[392355089,1761397832534,-500.0,0.00031219,2]
[392355090,1761397832544,-500.0,0.00031219,2]
[392355091,1761397832555,-500.0,0.00031219,2]
[392355092,1761397832566,-500.0,0.00031219,2]
[392355093,1761397832576,-500.0,0.00031219,2]
[392355095,1761397832587,-500.0,0.00031219,2]
[392355097,1761397832597,-500.0,0.00031219,2]
[392355098,1761397832609,-500.0,0.00031219,2]
[392355099,1761397832622,-500.0,0.00031219,2]
[392355100,1761397832633,-500.0,0.00031219,2]
[392355101,1761397832644,-114.93703542,0.00031219,2]
[392355102,1761397832658,-273.84430536,0.00031219,2]
[392355103,1761397832689,-111.21865922,0.00031219,2]
[392355104,1761397832700,-500.0,0.00031219,2]
[392355105,1761397832711,-383.48605916,0.00031219,2]
[392355106,1761397832722,-500.0,0.00031219,2]
[392355109,1761397832734,-10774.97,0.0003122,2]
[392355111,1761397832745,-168.03,0.00031244,2]
[392355114,1761397832756,-230.43,0.00031327,2]
[392355115,1761397832767,-436.0,0.00031396,3]
[392355116,1761397832778,-168.0,0.00031397,2]
[392355117,1761397832788,-666.0,0.00031411,3]
[392355118,1761397832799,-1000.0,0.00031458,2]
[392355119,1761397832809,-1000.0,0.00031469,2]
[392355120,1761397832820,-162.65,0.00031514,2]
[392355121,1761397832831,-12844.99,0.00031552,2]
[392355122,1761397832842,-262.44,0.00031636,2]
[392355123,1761397832853,-166.66,0.00031691,30]
[392355124,1761397832864,-1000.0,0.00031743,2]
[392355125,1761397832874,-701.69,0.00031861,2]
[392355126,1761397832885,-506.4,0.00031877,2]
[392355127,1761397832896,-503.15,0.00031887,30]
[392355128,1761397832907,-4454.67,0.00031889,7]
[392355129,1761397832918,-12806.0,0.00031945,2]
[392355130,1761397832929,-500.0,0.00032,120]
[392355131,1761397832939,-459.0,0.00032,120]
[392355132,1761397832950,-1000.0,0.00032017,2]
[392355133,1761397832960,-4280.38,0.00032042,2]
[392355134,1761397832971,-667.169,0.00032042,31]
[392355135,1761397832983,-762.0,0.0003214,7]
[392355136,1761397832995,-163.2,0.00032158,2]
[392355137,1761397833006,-947.0,0.00032253,7]
[392355138,1761397833018,-1000.0,0.00032291,2]
[392355139,1761397833030,-947.0,0.00032295,7]
[392355140,1761397833041,-762.0,0.00032312,2]
[392355141,1761397833052,-947.0,0.00032327,2]
[392355142,1761397833064,-166.66,0.00032331,30]
[392355143,1761397833075,-300.0,0.00032435,2]
[392355144,1761397833086,-947.0,0.0003244,2]
[392355145,1761397833098,-151.0,0.0003252,2]
[392355146,1761397833110,-147.29931867,0.0003252,2]
[392355147,1761397833124,-3.70068133,0.0003252,2]
[392355148,1761397833135,-151.0,0.0003252,2]
[392355149,1761397833146,-151.0,0.0003252,2]
[392355150,1761397833158,-151.0,0.0003252,2]
[392355151,1761397833169,-151.0,0.0003252,2]
[392355152,1761397833184,-151.0,0.0003252,2]
[392355153,1761397833195,-151.0,0.0003252,2]
[392355154,1761397833206,-151.0,0.0003252,2]
[392355155,1761397833217,-151.0,0.0003252,2]
[392355156,1761397833228,-151.0,0.0003252,2]
[392355157,1761397833239,-151.0,0.0003252,2]
[392355158,1761397833251,-151.0,0.0003252,2]
[392355159,1761397833263,-151.0,0.0003252,2]
[392355160,1761397833273,-151.0,0.0003252,2]
[392355161,1761397833284,-151.0,0.0003252,2]
[392355162,1761397833295,-151.0,0.0003252,2]
[392355163,1761397833306,-151.0,0.0003252,2]
[392355164,1761397833316,-151.0,0.0003252,2]
[392355165,1761397833327,-151.0,0.0003252,2]
[392355166,1761397833337,-151.0,0.0003252,2]
[392355167,1761397833347,-151.0,0.0003252,2]
[392355168,1761397833358,-151.0,0.0003252,2]
[392355169,1761397833368,-151.0,0.0003252,2]
[392355170,1761397833379,-151.0,0.0003252,2]
[392355171,1761397833390,-151.0,0.0003252,2]
[392355172,1761397833400,-151.0,0.0003252,2]
[392355173,1761397833411,-151.0,0.0003252,2]
[392355174,1761397833422,-534.97,0.00032538,2]
[392355175,1761397833433,-170.18,0.00032538,2]
[392355176,1761397833444,-1000.0,0.00032565,2]
[392355177,1761397833455,-152.0,0.00032672,4]
[392355178,1761397833465,-1141.80942791,0.00032776,2]
[392355179,1761397833476,-4013.9293567,0.00032776,2]
[392355180,1761397833487,-159.78525391,0.00032776,15]
[392355181,1761397833497,-1000.0,0.00032839,2]
[392355182,1761397833508,-184.65,0.00032856,2]
[392355183,1761397833519,-201.21356498,0.00032859,2]
[392355184,1761397833530,-539.17423391,0.00032859,2]
[392355185,1761397833540,-158.84621335,0.00032859,2]
[392355186,1761397833551,-23433.53698956,0.0003286,2]
[392355193,1761397838262,-3253.70221324,0.0003286,2]
[392355194,1761397838272,-163.0,0.0003286,2]
[392355195,1761397838286,-377.42196374,0.00032865,2]
[392355196,1761397838296,-7713.20255248,0.00032866,2]
[392355205,1761397840514,-500.0,0.00031109,2]
[392355206,1761397840524,-598.16511768,0.00031109,2]
[392355207,1761397840533,-2777.43488262,0.00032866,2]
[392355213,1761397843332,-241527.1832229,0.00032866,2]
[392355214,1761397843568,-98.22923139,0.00032866,2]
[392355215,1761397843579,-1000.0,0.00032866,2]
[392355217,1761397846310,-632.76473651,0.00032866,2]
[392355218,1761397846322,-546.03806591,0.00032866,2]
[392355219,1761397846471,-11196.0,0.00032866,2]
[392355220,1761397846578,-1381.53933619,0.00032866,2]
[392355221,1761397846588,-361.97525344,0.00032866,2]
[392355246,1761397924954,234.46448444,0.00036672,30]
[392355295,1761397967502,696.15325894,0.00031879,2]
[392355514,1761398225213,500.0,0.00036672,30]
[392355561,1761398304564,10270.3226611,0.00036672,30]
[392355580,1761398533592,500.0,0.00036672,30]
[392355629,1761398846877,12074.40778658,0.0002,2]
[392355654,1761398862045,6517.59812738,0.00036675,120]
[392355666,1761398869113,11715.40213617,0.00036675,120]
[392355679,1761398874111,22230.2173807,0.00015,2]
[392355680,1761398874140,158541.2102254,0.00015,2]
[392355686,1761398901428,160.0,0.0002,3]
[392355695,1761398971128,-4749.02316,0.0002,2]
[392355837,1761399039727,-1200.0,0.00019999,2]
[392355838,1761399039738,-500.0,0.00019999,2]
[392355839,1761399039748,-500.0,0.00019999,2]
[392355840,1761399039757,-436.35666302,0.00019999,2]
[392355841,1761399039766,-9170.95632766,0.0002,2]
[392355842,1761399039776,-158.52,0.00029,7]
[392355843,1761399039786,-159.0,0.00029,7]
[392355844,1761399039796,-154.9,0.00029034,2]
[392355845,1761399039806,-300.0,0.00029563,2]
[392355846,1761399039815,-150.0,0.00029564,7]
[392355847,1761399039824,-150.0,0.00029564,7]
[392355848,1761399039833,-150.0,0.00029564,7]
[392355849,1761399039843,-150.0,0.00029564,7]
[392355850,1761399039853,-150.0,0.00029564,7]
[392355851,1761399039863,-155.80232479,0.00029564,7]
[392355853,1761399039872,-153.17893229,0.00029564,7]
[392355854,1761399039882,-233.83408677,0.0003,5]
[392355855,1761399039891,-191.8380481,0.0003,2]
[392355857,1761399039900,-6947.35797738,0.0003013,2]
[392355858,1761399039909,-1000.0,0.00031192,2]
[392355859,1761399039919,-903.38,0.00031304,2]
[392355861,1761399039928,-1000.0,0.00031466,2]
[392355862,1761399039937,-800.0,0.000315,2]
[392355863,1761399039946,-300.0,0.0003161,7]
[392355864,1761399039955,-200.0,0.00031624,2]
[392355866,1761399039964,-3738.95,0.00031729,2]
[392355867,1761399039973,-1000.0,0.0003174,2]
[392355868,1761399039984,-200.0,0.00031841,2]
[392355870,1761399039993,-1060.0,0.00031859,2]
[392355871,1761399040002,-151.0,0.0003186,2]
[392355872,1761399040011,-151.0,0.0003186,2]
[392355873,1761399040020,-151.0,0.0003186,2]
[392355874,1761399040029,-151.0,0.0003186,2]
[392355875,1761399040038,-151.0,0.0003186,2]
[392355876,1761399040047,-151.0,0.0003186,2]
[392355877,1761399040056,-151.0,0.0003186,2]
[392355878,1761399040065,-151.0,0.0003186,2]
[392355879,1761399040074,-151.0,0.0003186,2]
[392355880,1761399040083,-151.0,0.0003186,2]
[392355881,1761399040092,-151.0,0.0003186,2]
[392355882,1761399040101,-151.0,0.0003186,2]
[392355883,1761399040111,-151.0,0.0003186,2]
[392355884,1761399040120,-151.0,0.0003186,2]
[392355886,1761399040129,-151.0,0.0003186,2]
[392355887,1761399040138,-151.0,0.0003186,2]
[392355888,1761399040147,-151.0,0.0003186,2]
[392355889,1761399040156,-151.0,0.0003186,2]
[392355891,1761399040166,-151.0,0.0003186,2]
[392355892,1761399040176,-151.0,0.0003186,2]
[392355893,1761399040185,-151.0,0.0003186,2]
[392355894,1761399040194,-151.0,0.0003186,2]
[392355895,1761399040203,-151.0,0.0003186,2]
[392355896,1761399040213,-151.0,0.0003186,2]
[392355897,1761399040222,-151.0,0.0003186,2]
[392355899,1761399040231,-151.0,0.0003186,2]
[392355900,1761399040241,-151.0,0.0003186,2]
[392355901,1761399040250,-151.0,0.0003186,2]
[392355902,1761399040259,-151.0,0.0003186,2]
[392355903,1761399040268,-151.0,0.0003186,2]
[392355904,1761399040278,-151.0,0.0003186,2]
[392355905,1761399040287,-151.0,0.0003186,2]
[392355906,1761399040296,-151.0,0.0003186,2]
[392355907,1761399040305,-151.0,0.0003186,2]
[392355908,1761399040314,-151.0,0.0003186,2]
[392355909,1761399040324,-151.0,0.0003186,2]
[392355910,1761399040334,-289.94526954,0.0003186,2]
[392355911,1761399040343,-420.0,0.00031877,2]
[392355913,1761399040352,-617.933,0.00031878,30]
[392355914,1761399040362,-69708.26674106,0.00031879,2]
[392355915,1761399040371,-653.41493,0.00031886,2]
[392355917,1761399040380,-150.0,0.00031886,2]
[392355918,1761399040393,-150.0,0.00031886,120]
[392355919,1761399040403,-500.0,0.000319,2]
[392355921,1761399040414,-500.0,0.000319,5]
[392355922,1761399040423,-500.0,0.000319,5]
[392355923,1761399040433,-192.79377433,0.000319,5]
[392355924,1761399040443,-500.0,0.000319,5]
[392355926,1761399040452,-500.0,0.000319,5]
[392355927,1761399040461,-500.0,0.000319,5]
[392355928,1761399040473,-250.0,0.00031938,2]
[392355930,1761399040483,-188.92760826,0.00032,120]
[392355931,1761399040492,-160.0,0.00032,9]
[392355932,1761399040501,-207.52758569,0.00032,120]
[392355934,1761399040511,-165.01492914,0.00032,120]
[392355935,1761399040520,-1781.67354962,0.00032,120]
[392355936,1761399040528,-160.0,0.00032,15]
[392355938,1761399040538,-160.0,0.00032,20]
[392355939,1761399040547,-1000.0,0.00032014,2]
[392355940,1761399040556,-299.99459039,0.000322,2]
[392355941,1761399040565,-1970.0,0.00032225,7]
[392355943,1761399040574,-1000.0,0.00032288,2]
[392355944,1761399040583,-2803.0,0.00032293,7]
[392355945,1761399040593,-1000.0,0.00032448,5]
[392355946,1761399040602,-387.74168017,0.00032448,5]
[392355947,1761399040611,-800.0,0.000325,3]
[392355949,1761399040620,-1000.0,0.00032562,2]
[392355950,1761399040629,-2500.0,0.0003267,2]
[392355951,1761399040639,-457.49545168,0.00032676,2]
[392355953,1761399040648,-788.90896196,0.00032696,2]
[392355954,1761399040658,-1000.0,0.000327,7]
[392355955,1761399040667,-387.97718532,0.00032707,2]
[392355956,1761399040676,-183.57355801,0.00032707,2]
[392355958,1761399040686,-197.26606589,0.00032707,2]
[392355959,1761399040695,-2803.0,0.00032708,2]
[392355960,1761399040704,-478.01045988,0.00032746,2]
[392355965,1761399040936,-500.0,0.00032751,2]
[392355966,1761399040945,-150.0,0.00032751,2]
[392355967,1761399040955,-500.0,0.00032751,2]
[392355968,1761399040964,-150.0,0.00032751,2]
[392355969,1761399040973,-500.0,0.00032751,2]
[392355970,1761399040982,-150.0,0.00032751,2]
[392355971,1761399040991,-150.0,0.00032751,2]
[392355972,1761399041000,-150.0,0.00032751,2]
[392355973,1761399041009,-150.0,0.00032751,2]
[392355974,1761399041019,-500.0,0.00032751,2]
[392355975,1761399041029,-500.0,0.00032751,2]
[392355976,1761399041038,-8752.11772893,0.00032752,2]
[392355977,1761399041047,-151.0,0.00032757,14]
[392355978,1761399041056,-39009.6213774,0.0003276,2]
[392355979,1761399041065,-5000.0,0.00032766,2]
[392355980,1761399041075,-151.0,0.00032767,14]
[392355981,1761399041084,-500.0,0.00032769,9]
[392355982,1761399041093,-150.0,0.00032769,9]
[392355983,1761399041102,-150.0,0.00032769,9]
[392355984,1761399041111,-150.0,0.00032769,9]
[392355985,1761399041120,-150.0,0.00032769,9]
[392355986,1761399041129,-150.0,0.00032769,9]
[392355987,1761399041139,-150.0,0.00032769,9]
[392355988,1761399041148,-200.0,0.00032769,9]
[392355989,1761399041157,-500.0,0.00032769,9]
[392355990,1761399041166,-150.0,0.00032769,9]
[392355991,1761399041176,-150.0,0.00032769,9]
[392355992,1761399041185,-150.0,0.00032769,9]
[392355993,1761399041195,-202.84684787,0.00032769,9]
[392355994,1761399041204,-156.68040593,0.00032769,9]
[392355995,1761399041213,-500.0,0.00032769,2]
[392355996,1761399041223,-500.0,0.00032769,9]